[Event "January 2 Early 2024"]
[Site "https://www.chess.com"]
[Date "2024.01.02"]
[Round "1"]
[White "Haring, Filip"]
[Black "Novak, Ratko"]
[Result "1-0"]
[Board "153"]
[TimeControl "180+1"]
[WhiteFideId "14933080"]
[BlackFideId "14511827"]
[WhiteElo "2722"]
[BlackElo "2381"]
[WhiteTeam "SVK"]
[BlackTeam "CRO"]
[WhiteClock "0:00:44"]
[BlackClock "0:00:11"]

1. Nf3 {[%clk 0:03:00]}  d5 {[%clk 0:02:53]} 2. d4 {[%clk 0:03:01]}  c5 {[%clk 0:02:52]} 3. e3 {[%clk 0:02:57]}  cxd4 {[%clk 0:02:51]} 4. exd4 {[%clk 0:02:57]}  Nc6 {[%clk 0:02:51]} 5. Bf4 {[%clk 0:02:46]}  f6 {[%clk 0:02:49]} 6. Be2 {[%clk 0:02:40]}  Bg4 {[%clk 0:02:48]} 7. O-O {[%clk 0:02:36]}  e6 {[%clk 0:02:48]} 8. h3 {[%clk 0:02:34]}  Bh5 {[%clk 0:02:48]} 9. c4 {[%clk 0:02:27]}  Bd6 {[%clk 0:02:47]} 10. Be3 {[%clk 0:02:14]}  Nge7 {[%clk 0:02:45]} 11. Nc3 {[%clk 0:02:15]}  O-O {[%clk 0:02:44]} 12. Rc1 {[%clk 0:02:10]}  Rc8 {[%clk 0:02:44]} 13. a3 {[%clk 0:02:04]}  a6 {[%clk 0:02:44]} 14. cxd5 {[%clk 0:01:56]}  exd5 {[%clk 0:02:43]} 15. Na4 {[%clk 0:01:46]}  Bf7 {[%clk 0:02:34]} 16. Nc5 {[%clk 0:01:46]}  Rb8 {[%clk 0:01:59]} 17. Bd3 {[%clk 0:01:40]}  Bc7 {[%clk 0:01:55]} 18. Qc2 {[%clk 0:01:35]}  Kh8 {[%clk 0:01:54]} 19. Nh4 {[%clk 0:01:28]}  Qd6 {[%clk 0:01:53]} 20. g3 {[%clk 0:01:27]}  g6 {[%clk 0:01:01]} 21. Qd2 {[%clk 0:01:19]}  g5 {[%clk 0:00:49]} 22. Nf5 {[%clk 0:01:12]}  Nxf5 {[%clk 0:00:49]} 23. Bxf5 {[%clk 0:01:13]}  Bg6 {[%clk 0:00:49]} 24. Qc2 {[%clk 0:01:10]}  Bxf5 {[%clk 0:00:49]} 25. Qxf5 {[%clk 0:01:11]}  Rfe8 {[%clk 0:00:45]} 26. Rfe1 {[%clk 0:01:04]}  Bb6 {[%clk 0:00:45]} 27. Nd7 {[%clk 0:01:00]}  Bxd4 {[%clk 0:00:38]} 28. Nxb8 {[%clk 0:00:52]}  Bxe3 {[%clk 0:00:27]} 29. Rxe3 {[%clk 0:00:52]}  Rxb8 {[%clk 0:00:27]} 30. Re6 {[%clk 0:00:50]}  Qd8 {[%clk 0:00:24]} 31. Rxf6 {[%clk 0:00:47]}  Nd4 {[%clk 0:00:21]} 32. Qe5 {[%clk 0:00:44]}  Ne2+ {[%clk 0:00:13]} 33. Kg2 {[%clk 0:00:44]}  Nxc1 {[%clk 0:00:11]} 34. Rf8# {[%clk 0:00:44]} 1-0

[Event "January 2 Early 2024"]
[Site "https://www.chess.com"]
[Date "2024.01.02"]
[Round "1"]
[White "Vaibhav Jayant Raut"]
[Black "Fernandez Garcia, Gumersindo"]
[Result "1-0"]
[Board "155"]
[TimeControl "180+1"]
[WhiteFideId "5089034"]
[BlackFideId "24516740"]
[WhiteElo "2722"]
[BlackElo "2372"]
[WhiteTeam "IND"]
[BlackTeam "ESP"]
[WhiteClock "0:00:48"]
[BlackClock "0:00:10"]

1. e4 {[%clk 0:03:00]}  c5 {[%clk 0:02:56]} 2. Nf3 {[%clk 0:03:00]}  e6 {[%clk 0:02:55]} 3. b3 {[%clk 0:03:00]}  d5 {[%clk 0:02:54]} 4. exd5 {[%clk 0:03:00]}  exd5 {[%clk 0:02:54]} 5. Bb2 {[%clk 0:03:00]}  Nc6 {[%clk 0:02:54]} 6. Bb5 {[%clk 0:02:59]}  Bd7 {[%clk 0:02:53]} 7. O-O {[%clk 0:02:58]}  Nge7 {[%clk 0:02:43]} 8. Re1 {[%clk 0:02:54]}  Qc7 {[%clk 0:02:43]} 9. Ne5 {[%clk 0:02:48]}  Nxe5 {[%clk 0:02:35]} 10. Bxe5 {[%clk 0:02:49]}  Qc8 {[%clk 0:02:35]} 11. Qe2 {[%clk 0:02:43]}  Bxb5 {[%clk 0:02:27]} 12. Qxb5+ {[%clk 0:02:42]}  Qc6 {[%clk 0:02:27]} 13. Qxc6+ {[%clk 0:02:35]}  bxc6 {[%clk 0:02:28]} 14. Bd6 {[%clk 0:02:35]}  Kd7 {[%clk 0:02:26]} 15. Bxc5 {[%clk 0:02:34]}  Nf5 {[%clk 0:02:24]} 16. Bxf8 {[%clk 0:02:33]}  Rhxf8 {[%clk 0:02:25]} 17. c3 {[%clk 0:02:29]}  Rfe8 {[%clk 0:02:23]} 18. Na3 {[%clk 0:02:29]}  a5 {[%clk 0:02:19]} 19. Nc2 {[%clk 0:02:28]}  Nd6 {[%clk 0:02:16]} 20. f3 {[%clk 0:02:26]}  a4 {[%clk 0:02:12]} 21. Kf2 {[%clk 0:02:21]}  axb3 {[%clk 0:02:08]} 22. axb3 {[%clk 0:02:22]}  Rxe1 {[%clk 0:02:03]} 23. Rxa8 {[%clk 0:02:12]}  Rh1 {[%clk 0:02:03]} 24. Ra7+ {[%clk 0:02:12]}  Ke8 {[%clk 0:01:58]} 25. h3 {[%clk 0:02:06]}  Rd1 {[%clk 0:01:48]} 26. Ke2 {[%clk 0:01:58]}  Rg1 {[%clk 0:01:48]} 27. Ne3 {[%clk 0:01:58]}  g6 {[%clk 0:01:42]} 28. b4 {[%clk 0:01:51]}  Nf5 {[%clk 0:01:04]} 29. Kf2 {[%clk 0:01:38]}  Rb1 {[%clk 0:00:55]} 30. Nxf5 {[%clk 0:01:37]}  gxf5 {[%clk 0:00:55]} 31. Rc7 {[%clk 0:01:36]}  d4 {[%clk 0:00:55]} 32. Rxc6 {[%clk 0:01:33]}  Rd1 {[%clk 0:00:55]} 33. Ke2 {[%clk 0:01:29]}  Rg1 {[%clk 0:00:55]} 34. g4 {[%clk 0:01:28]}  Rg2+ {[%clk 0:00:51]} 35. Kd3 {[%clk 0:01:25]}  dxc3 {[%clk 0:00:50]} 36. dxc3 {[%clk 0:01:24]}  Rg3 {[%clk 0:00:51]} 37. Ke3 {[%clk 0:01:21]}  Rxh3 {[%clk 0:00:51]} 38. gxf5 {[%clk 0:01:21]}  Rh1 {[%clk 0:00:49]} 39. b5 {[%clk 0:01:22]}  Rb1 {[%clk 0:00:47]} 40. c4 {[%clk 0:01:22]}  h5 {[%clk 0:00:46]} 41. Kf4 {[%clk 0:01:21]}  Kd7 {[%clk 0:00:36]} 42. f6 {[%clk 0:01:19]}  Rg1 {[%clk 0:00:29]} 43. Rc5 {[%clk 0:01:17]}  h4 {[%clk 0:00:28]} 44. b6 {[%clk 0:01:16]}  h3 {[%clk 0:00:27]} 45. Rh5 {[%clk 0:01:13]}  Rc1 {[%clk 0:00:20]} 46. c5 {[%clk 0:01:11]}  h2 {[%clk 0:00:19]} 47. Rxh2 {[%clk 0:01:10]}  Rxc5 {[%clk 0:00:18]} 48. Rb2 {[%clk 0:01:10]}  Kc8 {[%clk 0:00:17]} 49. b7+ {[%clk 0:01:09]}  Kb8 {[%clk 0:00:18]} 50. Re2 {[%clk 0:01:08]}  Rc6 {[%clk 0:00:17]} 51. Kg5 {[%clk 0:01:07]}  Rc5+ {[%clk 0:00:17]} 52. Kh6 {[%clk 0:01:06]}  Rf5 {[%clk 0:00:17]} 53. Kg7 {[%clk 0:01:04]}  Kxb7 {[%clk 0:00:15]} 54. Kxf7 {[%clk 0:01:03]}  Kc7 {[%clk 0:00:16]} 55. Rd2 {[%clk 0:00:55]}  Rxf3 {[%clk 0:00:15]} 56. Kg7 {[%clk 0:00:55]}  Rg3+ {[%clk 0:00:16]} 57. Kf8 {[%clk 0:00:55]}  Rf3 {[%clk 0:00:16]} 58. f7 {[%clk 0:00:56]}  Kc8 {[%clk 0:00:16]} 59. Rg2 {[%clk 0:00:52]}  Kd7 {[%clk 0:00:15]} 60. Kg7 {[%clk 0:00:52]}  Ke7 {[%clk 0:00:11]} 61. Re2+ {[%clk 0:00:49]}  Kd7 {[%clk 0:00:10]} 62. f8=Q {[%clk 0:00:48]} 1-0

[Event "January 2 Early 2024"]
[Site "https://www.chess.com"]
[Date "2024.01.02"]
[Round "1"]
[White "Marchesich, Giovanni"]
[Black "Fier, Alexandr"]
[Result "0-1"]
[Board "156"]
[TimeControl "180+1"]
[WhiteFideId "2824790"]
[BlackFideId "2107139"]
[WhiteElo "2370"]
[BlackElo "2721"]
[WhiteTeam "ITA"]
[BlackTeam "BRA"]
[WhiteClock "0:00:02"]
[BlackClock "0:02:16"]

1. e4 {[%clk 0:03:00]}  Nf6 {[%clk 0:02:59]} 2. Nc3 {[%clk 0:02:59]}  e5 {[%clk 0:02:58]} 3. Nf3 {[%clk 0:02:57]}  Nc6 {[%clk 0:02:57]} 4. d4 {[%clk 0:02:57]}  exd4 {[%clk 0:02:56]} 5. Nxd4 {[%clk 0:02:58]}  Bb4 {[%clk 0:02:55]} 6. Nxc6 {[%clk 0:02:58]}  bxc6 {[%clk 0:02:55]} 7. Bd3 {[%clk 0:02:58]}  d5 {[%clk 0:02:56]} 8. Bd2 {[%clk 0:02:58]}  O-O {[%clk 0:02:51]} 9. O-O {[%clk 0:02:58]}  Bxc3 {[%clk 0:02:51]} 10. Bxc3 {[%clk 0:02:58]}  Nxe4 {[%clk 0:02:52]} 11. Bxe4 {[%clk 0:02:54]}  dxe4 {[%clk 0:02:53]} 12. Qh5 {[%clk 0:01:55]}  Qd5 {[%clk 0:02:52]} 13. Qe5 {[%clk 0:01:38]}  f6 {[%clk 0:02:47]} 14. Qxc7 {[%clk 0:01:30]}  Bg4 {[%clk 0:02:42]} 15. Qg3 {[%clk 0:01:24]}  Bh5 {[%clk 0:02:41]} 16. Rfe1 {[%clk 0:01:23]}  Rae8 {[%clk 0:02:40]} 17. Re3 {[%clk 0:01:15]}  Rf7 {[%clk 0:02:39]} 18. Rae1 {[%clk 0:01:04]}  f5 {[%clk 0:02:38]} 19. Qf4 {[%clk 0:01:04]}  h6 {[%clk 0:02:38]} 20. h4 {[%clk 0:01:03]}  Kh7 {[%clk 0:02:38]} 21. f3 {[%clk 0:00:52]}  Re6 {[%clk 0:02:31]} 22. a3 {[%clk 0:00:24]}  Rg6 {[%clk 0:02:29]} 23. Kh2 {[%clk 0:00:12]}  exf3 {[%clk 0:02:29]} 24. gxf3 {[%clk 0:00:13]}  Qc5 {[%clk 0:02:20]} 25. Qd4 {[%clk 0:00:11]}  Qxd4 {[%clk 0:02:15]} 26. Bxd4 {[%clk 0:00:12]}  f4 {[%clk 0:02:16]} 27. Rc3 {[%clk 0:00:12]}  Rg3 {[%clk 0:02:16]} 28. Rf1 {[%clk 0:00:06]}  Re7 {[%clk 0:02:16]} 29. Bf2 {[%clk 0:00:04]}  Rxf3 {[%clk 0:02:15]} 30. Rxf3 {[%clk 0:00:04]}  Bxf3 {[%clk 0:02:16]} 31. Bc5 {[%clk 0:00:05]}  Re2+ {[%clk 0:02:16]} 32. Kh3 {[%clk 0:00:02]}  Bg2+ {[%clk 0:02:16]} 0-1

[Event "January 2 Early 2024"]
[Site "https://www.chess.com"]
[Date "2024.01.02"]
[Round "1"]
[White "Harshavardhan G B"]
[Black "Kraus, Tomas"]
[Result "1-0"]
[Board "157"]
[TimeControl "180+1"]
[WhiteFideId "25059009"]
[BlackFideId "331708"]
[WhiteElo "2721"]
[BlackElo "2369"]
[WhiteTeam "IND"]
[BlackTeam "CZE"]
[WhiteClock "0:02:00"]
[BlackClock "0:00:01"]

1. e4 {[%clk 0:03:00]}  c5 {[%clk 0:02:58]} 2. Nf3 {[%clk 0:03:00]}  e6 {[%clk 0:02:54]} 3. b3 {[%clk 0:03:00]}  d5 {[%clk 0:02:53]} 4. exd5 {[%clk 0:03:00]}  exd5 {[%clk 0:02:54]} 5. d4 {[%clk 0:02:59]}  Nf6 {[%clk 0:02:52]} 6. Bb5+ {[%clk 0:02:58]}  Nc6 {[%clk 0:02:52]} 7. O-O {[%clk 0:02:57]}  Be7 {[%clk 0:02:53]} 8. dxc5 {[%clk 0:02:57]}  O-O {[%clk 0:02:50]} 9. Be3 {[%clk 0:02:53]}  Ng4 {[%clk 0:02:44]} 10. Bxc6 {[%clk 0:02:52]}  bxc6 {[%clk 0:02:44]} 11. Bd4 {[%clk 0:02:51]}  Bf5 {[%clk 0:02:06]} 12. Nbd2 {[%clk 0:02:48]}  Bf6 {[%clk 0:01:51]} 13. c3 {[%clk 0:02:46]}  Re8 {[%clk 0:01:26]} 14. h3 {[%clk 0:02:43]}  Ne5 {[%clk 0:01:23]} 15. Nxe5 {[%clk 0:02:36]}  Bxe5 {[%clk 0:01:24]} 16. Bxe5 {[%clk 0:02:36]}  Rxe5 {[%clk 0:01:24]} 17. Nf3 {[%clk 0:02:33]}  Re8 {[%clk 0:01:17]} 18. Nd4 {[%clk 0:02:32]}  Bd7 {[%clk 0:01:15]} 19. Qf3 {[%clk 0:02:29]}  Qe7 {[%clk 0:01:09]} 20. b4 {[%clk 0:02:29]}  a5 {[%clk 0:01:09]} 21. a3 {[%clk 0:02:28]}  Qe5 {[%clk 0:01:03]} 22. Qd3 {[%clk 0:02:19]}  f5 {[%clk 0:00:51]} 23. Qd2 {[%clk 0:02:18]}  f4 {[%clk 0:00:49]} 24. Rfe1 {[%clk 0:02:16]}  Qf6 {[%clk 0:00:49]} 25. Rxe8+ {[%clk 0:02:13]}  Rxe8 {[%clk 0:00:45]} 26. Re1 {[%clk 0:02:14]}  Qg5 {[%clk 0:00:23]} 27. Rxe8+ {[%clk 0:02:11]}  Bxe8 {[%clk 0:00:24]} 28. Ne6 {[%clk 0:02:10]}  Qg6 {[%clk 0:00:19]} 29. Nxf4 {[%clk 0:02:08]}  Qb1+ {[%clk 0:00:18]} 30. Kh2 {[%clk 0:02:08]}  Bd7 {[%clk 0:00:17]} 31. Qe3 {[%clk 0:02:02]}  Qf5 {[%clk 0:00:07]} 32. bxa5 {[%clk 0:02:01]}  g5 {[%clk 0:00:06]} 33. Nd3 {[%clk 0:02:00]}  g4 {[%clk 0:00:05]} 34. hxg4 {[%clk 0:01:59]}  Qxg4 {[%clk 0:00:06]} 35. Qg3 {[%clk 0:01:59]}  Qxg3+ {[%clk 0:00:05]} 36. Kxg3 {[%clk 0:02:00]}  Bf5 {[%clk 0:00:06]} 37. Ne5 {[%clk 0:02:00]}  d4 {[%clk 0:00:01]} 38. cxd4 {[%clk 0:02:00]} 1-0

[Event "January 2 Early 2024"]
[Site "https://www.chess.com"]
[Date "2024.01.02"]
[Round "1"]
[White "Semenenko, Dmytry"]
[Black "Poormosavi, Seyed Kian"]
[Result "0-1"]
[Board "158"]
[TimeControl "180+1"]
[WhiteFideId "14118645"]
[BlackFideId "12585807"]
[WhiteElo "2363"]
[BlackElo "2720"]
[WhiteTeam "UKR"]
[BlackTeam "IRI"]
[WhiteClock "0:00:00"]
[BlackClock "0:00:10"]

1. Nf3 {[%clk 0:02:59]}  Nf6 {[%clk 0:02:58]} 2. c4 {[%clk 0:02:59]}  b6 {[%clk 0:02:57]} 3. d4 {[%clk 0:02:59]}  Bb7 {[%clk 0:02:57]} 4. g3 {[%clk 0:02:59]}  g6 {[%clk 0:02:57]} 5. Bg2 {[%clk 0:02:58]}  Bg7 {[%clk 0:02:58]} 6. O-O {[%clk 0:02:58]}  O-O {[%clk 0:02:59]} 7. Nc3 {[%clk 0:02:58]}  Ne4 {[%clk 0:02:59]} 8. Qc2 {[%clk 0:02:56]}  Nxc3 {[%clk 0:02:58]} 9. bxc3 {[%clk 0:02:56]}  e6 {[%clk 0:02:56]} 10. e4 {[%clk 0:02:54]}  d6 {[%clk 0:02:57]} 11. Be3 {[%clk 0:02:47]}  c5 {[%clk 0:02:57]} 12. Rfd1 {[%clk 0:02:46]}  Qc7 {[%clk 0:02:44]} 13. a4 {[%clk 0:02:29]}  Nc6 {[%clk 0:02:44]} 14. Rd2 {[%clk 0:02:01]}  Na5 {[%clk 0:02:43]} 15. Bf1 {[%clk 0:01:54]}  Rac8 {[%clk 0:02:30]} 16. dxc5 {[%clk 0:01:35]}  dxc5 {[%clk 0:02:31]} 17. Rad1 {[%clk 0:01:27]}  Qc6 {[%clk 0:02:18]} 18. Ng5 {[%clk 0:01:15]}  h6 {[%clk 0:01:59]} 19. Rd6 {[%clk 0:01:15]}  Qe8 {[%clk 0:01:59]} 20. Nf3 {[%clk 0:01:12]}  Bc6 {[%clk 0:02:00]} 21. Qd2 {[%clk 0:01:07]}  Bxa4 {[%clk 0:01:59]} 22. Rb1 {[%clk 0:00:50]}  Kh7 {[%clk 0:01:57]} 23. h4 {[%clk 0:00:40]}  Qe7 {[%clk 0:01:54]} 24. h5 {[%clk 0:00:38]}  Rcd8 {[%clk 0:01:45]} 25. e5 {[%clk 0:00:35]}  Bc6 {[%clk 0:01:39]} 26. hxg6+ {[%clk 0:00:30]}  fxg6 {[%clk 0:01:40]} 27. Nh4 {[%clk 0:00:30]}  Bxe5 {[%clk 0:01:40]} 28. Rxd8 {[%clk 0:00:24]}  Rxd8 {[%clk 0:01:39]} 29. Qc2 {[%clk 0:00:25]}  Rg8 {[%clk 0:01:34]} 30. Bd3 {[%clk 0:00:25]}  Qf6 {[%clk 0:01:34]} 31. Re1 {[%clk 0:00:21]}  Be8 {[%clk 0:01:30]} 32. Bd2 {[%clk 0:00:17]}  Nc6 {[%clk 0:01:28]} 33. Qc1 {[%clk 0:00:16]}  Ne7 {[%clk 0:01:15]} 34. Bxh6 {[%clk 0:00:16]}  Nf5 {[%clk 0:01:16]} 35. Bxf5 {[%clk 0:00:12]}  gxf5 {[%clk 0:01:15]} 36. Bf4 {[%clk 0:00:12]}  Bxc3 {[%clk 0:01:13]} 37. Re3 {[%clk 0:00:07]}  Bd4 {[%clk 0:01:12]} 38. Ra3 {[%clk 0:00:06]}  Qxh4 {[%clk 0:01:05]} 39. Rxa7+ {[%clk 0:00:04]}  Kh8 {[%clk 0:01:06]} 40. Qd2 {[%clk 0:00:03]}  Qf6 {[%clk 0:00:37]} 41. Kf1 {[%clk 0:00:02]}  Bc6 {[%clk 0:00:29]} 42. Qe2 {[%clk 0:00:02]}  Be8 {[%clk 0:00:18]} 43. Be5 {[%clk 0:00:01]}  Qxe5 {[%clk 0:00:12]} 44. Qf3 {[%clk 0:00:00]}  Qe4 {[%clk 0:00:10]} 0-1

[Event "January 2 Early 2024"]
[Site "https://www.chess.com"]
[Date "2024.01.02"]
[Round "1"]
[White "Ten Hertog, Hugo"]
[Black "Coca Cubillos, Jesus Alberto"]
[Result "1-0"]
[Board "159"]
[TimeControl "180+1"]
[WhiteFideId "1026356"]
[BlackFideId "4462912"]
[WhiteElo "2716"]
[BlackElo "2361"]
[WhiteTeam "NED"]
[BlackTeam "COL"]
[WhiteClock "0:00:27"]
[BlackClock "0:02:07"]

1. g3 {[%clk 0:02:54]}  g6 {[%clk 0:03:00]} 2. Bg2 {[%clk 0:02:55]}  Bg7 {[%clk 0:03:00]} 3. e4 {[%clk 0:02:53]}  Nh6 {[%clk 0:03:00]} 4. d4 {[%clk 0:02:52]}  d6 {[%clk 0:03:00]} 5. f4 {[%clk 0:02:43]}  O-O {[%clk 0:02:59]} 6. Nf3 {[%clk 0:02:42]}  e6 {[%clk 0:02:59]} 7. O-O {[%clk 0:02:41]}  Kh8 {[%clk 0:03:00]} 8. c4 {[%clk 0:02:40]}  Nc6 {[%clk 0:03:01]} 9. Nc3 {[%clk 0:02:40]}  f6 {[%clk 0:03:01]} 10. d5 {[%clk 0:02:29]}  Ne7 {[%clk 0:03:00]} 11. dxe6 {[%clk 0:02:22]}  Bxe6 {[%clk 0:02:59]} 12. Qd3 {[%clk 0:02:21]}  Nc6 {[%clk 0:02:58]} 13. b3 {[%clk 0:01:59]}  Qd7 {[%clk 0:02:57]} 14. Bb2 {[%clk 0:01:58]}  Rae8 {[%clk 0:02:58]} 15. Nd5 {[%clk 0:01:56]}  f5 {[%clk 0:02:55]} 16. Bxg7+ {[%clk 0:01:54]}  Qxg7 {[%clk 0:02:54]} 17. Ng5 {[%clk 0:01:54]}  Bg8 {[%clk 0:02:53]} 18. Rae1 {[%clk 0:01:52]}  fxe4 {[%clk 0:02:51]} 19. Bxe4 {[%clk 0:01:51]}  Nf7 {[%clk 0:02:48]} 20. Nf3 {[%clk 0:01:47]}  Nfd8 {[%clk 0:02:47]} 21. a3 {[%clk 0:01:28]}  Ne6 {[%clk 0:02:47]} 22. b4 {[%clk 0:01:27]}  Ncd4 {[%clk 0:02:40]} 23. Nxd4 {[%clk 0:01:24]}  Nxd4 {[%clk 0:02:39]} 24. Nxc7 {[%clk 0:01:09]}  Qxc7 {[%clk 0:02:37]} 25. Qxd4+ {[%clk 0:01:09]}  Qg7 {[%clk 0:02:38]} 26. Qxg7+ {[%clk 0:00:52]}  Kxg7 {[%clk 0:02:38]} 27. Bxb7 {[%clk 0:00:49]}  Bxc4 {[%clk 0:02:36]} 28. Rxe8 {[%clk 0:00:50]}  Rxe8 {[%clk 0:02:36]} 29. Rd1 {[%clk 0:00:51]}  Re3 {[%clk 0:02:32]} 30. a4 {[%clk 0:00:43]}  Ra3 {[%clk 0:02:30]} 31. Bc6 {[%clk 0:00:36]}  Rb3 {[%clk 0:02:20]} 32. Rxd6 {[%clk 0:00:25]}  Rxb4 {[%clk 0:02:19]} 33. Rd7+ {[%clk 0:00:26]}  Kh6 {[%clk 0:02:18]} 34. Rxa7 {[%clk 0:00:27]}  g5 {[%clk 0:02:17]} 35. Rb7 {[%clk 0:00:24]}  Rxb7 {[%clk 0:02:13]} 36. Bxb7 {[%clk 0:00:25]}  gxf4 {[%clk 0:02:13]} 37. gxf4 {[%clk 0:00:26]}  Kg6 {[%clk 0:02:12]} 38. Kf2 {[%clk 0:00:26]}  Kf5 {[%clk 0:02:13]} 39. Ke3 {[%clk 0:00:26]}  h5 {[%clk 0:02:07]} 40. a5 {[%clk 0:00:27]} 1-0

[Event "January 2 Early 2024"]
[Site "https://www.chess.com"]
[Date "2024.01.02"]
[Round "1"]
[White "Evdokimov, Alexey"]
[Black "Manolache, Marius"]
[Result "0-1"]
[Board "168"]
[TimeControl "180+1"]
[WhiteFideId "24162450"]
[BlackFideId "1201530"]
[WhiteElo "2345"]
[BlackElo "2701"]
[WhiteTeam "RUS"]
[BlackTeam "ROU"]
[WhiteClock "0:00:05"]
[BlackClock "0:00:22"]

1. Nf3 {[%clk 0:03:00]}  Nf6 {[%clk 0:02:58]} 2. c4 {[%clk 0:03:01]}  d6 {[%clk 0:02:57]} 3. Nc3 {[%clk 0:03:01]}  c6 {[%clk 0:02:57]} 4. d4 {[%clk 0:03:01]}  Bf5 {[%clk 0:02:57]} 5. g3 {[%clk 0:02:58]}  h6 {[%clk 0:02:57]} 6. Bg2 {[%clk 0:02:58]}  Nbd7 {[%clk 0:02:57]} 7. O-O {[%clk 0:02:57]}  e5 {[%clk 0:02:58]} 8. Nh4 {[%clk 0:02:35]}  Bh7 {[%clk 0:02:57]} 9. e4 {[%clk 0:02:33]}  Be7 {[%clk 0:02:55]} 10. Re1 {[%clk 0:02:30]}  O-O {[%clk 0:02:49]} 11. Nf5 {[%clk 0:02:23]}  Bxf5 {[%clk 0:02:48]} 12. exf5 {[%clk 0:02:24]}  Re8 {[%clk 0:02:33]} 13. Be3 {[%clk 0:02:21]}  Qc7 {[%clk 0:02:31]} 14. Qc2 {[%clk 0:02:13]}  Nb6 {[%clk 0:02:26]} 15. b3 {[%clk 0:02:09]}  Bf8 {[%clk 0:02:25]} 16. Rad1 {[%clk 0:02:07]}  Ng4 {[%clk 0:02:24]} 17. dxe5 {[%clk 0:01:52]}  Nxe3 {[%clk 0:02:17]} 18. Rxe3 {[%clk 0:01:52]}  Rxe5 {[%clk 0:02:10]} 19. Rxe5 {[%clk 0:01:50]}  dxe5 {[%clk 0:02:10]} 20. Ne4 {[%clk 0:01:42]}  Rd8 {[%clk 0:02:05]} 21. a4 {[%clk 0:01:31]}  a5 {[%clk 0:02:02]} 22. Qe2 {[%clk 0:01:27]}  Rxd1+ {[%clk 0:01:42]} 23. Qxd1 {[%clk 0:01:28]}  Nd7 {[%clk 0:01:42]} 24. Qd2 {[%clk 0:01:17]}  Be7 {[%clk 0:01:40]} 25. h4 {[%clk 0:01:14]}  Kf8 {[%clk 0:01:39]} 26. Bf3 {[%clk 0:01:09]}  Nf6 {[%clk 0:01:37]} 27. Nxf6 {[%clk 0:01:08]}  Bxf6 {[%clk 0:01:37]} 28. Be4 {[%clk 0:01:07]}  Be7 {[%clk 0:01:37]} 29. Kg2 {[%clk 0:01:05]}  Qd6 {[%clk 0:01:31]} 30. Qxa5 {[%clk 0:01:01]}  Qd4 {[%clk 0:01:01]} 31. Qa8+ {[%clk 0:00:56]}  Bd8 {[%clk 0:01:01]} 32. Bf3 {[%clk 0:00:51]}  Qd7 {[%clk 0:00:54]} 33. a5 {[%clk 0:00:46]}  Qc7 {[%clk 0:00:53]} 34. a6 {[%clk 0:00:45]}  bxa6 {[%clk 0:00:53]} 35. Qxa6 {[%clk 0:00:44]}  c5 {[%clk 0:00:53]} 36. Qa8 {[%clk 0:00:42]}  Ke7 {[%clk 0:00:53]} 37. Bd5 {[%clk 0:00:42]}  Qd6 {[%clk 0:00:48]} 38. Qa7+ {[%clk 0:00:40]}  Bc7 {[%clk 0:00:48]} 39. g4 {[%clk 0:00:36]}  Kf6 {[%clk 0:00:41]} 40. Qa1 {[%clk 0:00:30]}  Ke7 {[%clk 0:00:39]} 41. Qc3 {[%clk 0:00:28]}  f6 {[%clk 0:00:35]} 42. Qa1 {[%clk 0:00:25]}  e4 {[%clk 0:00:30]} 43. Qa8 {[%clk 0:00:14]}  Qh2+ {[%clk 0:00:27]} 44. Kf1 {[%clk 0:00:15]}  Qh1+ {[%clk 0:00:28]} 45. Ke2 {[%clk 0:00:16]}  Qf3+ {[%clk 0:00:28]} 46. Ke1 {[%clk 0:00:12]}  Qc3+ {[%clk 0:00:26]} 47. Kf1 {[%clk 0:00:11]}  Qd3+ {[%clk 0:00:25]} 48. Kg2 {[%clk 0:00:09]}  Qf3+ {[%clk 0:00:25]} 49. Kf1 {[%clk 0:00:09]}  Qd1+ {[%clk 0:00:25]} 50. Kg2 {[%clk 0:00:09]}  Qxg4+ {[%clk 0:00:25]} 51. Kf1 {[%clk 0:00:10]}  Qh3+ {[%clk 0:00:25]} 52. Ke2 {[%clk 0:00:10]}  Qd3+ {[%clk 0:00:20]} 53. Ke1 {[%clk 0:00:10]}  Qb1+ {[%clk 0:00:20]} 54. Ke2 {[%clk 0:00:11]}  Qd3+ {[%clk 0:00:20]} 55. Ke1 {[%clk 0:00:11]}  e3 {[%clk 0:00:21]} 56. Qg8 {[%clk 0:00:05]}  Qd2+ {[%clk 0:00:21]} 57. Kf1 {[%clk 0:00:05]}  Qxf2# {[%clk 0:00:22]} 0-1

[Event "January 2 Early 2024"]
[Site "https://www.chess.com"]
[Date "2024.01.02"]
[Round "1"]
[White "Mammadova, Narmin"]
[Black "Kartoflenko"]
[Result "1-0"]
[Board "173"]
[TimeControl "180+1"]
[WhiteFideId "13403710"]
[WhiteElo "2685"]
[BlackElo "2341"]
[WhiteTeam "AZE"]
[WhiteClock "0:00:37"]
[BlackClock "0:00:29"]

1. e3 {[%clk 0:02:59]}  d5 {[%clk 0:02:59]} 2. d4 {[%clk 0:02:59]}  Nf6 {[%clk 0:02:56]} 3. Nf3 {[%clk 0:03:00]}  e6 {[%clk 0:02:56]} 4. Bd3 {[%clk 0:03:00]}  Be7 {[%clk 0:02:56]} 5. O-O {[%clk 0:03:00]}  O-O {[%clk 0:02:56]} 6. b3 {[%clk 0:02:59]}  b6 {[%clk 0:02:52]} 7. Bb2 {[%clk 0:02:59]}  Ba6 {[%clk 0:02:51]} 8. c4 {[%clk 0:02:47]}  Nbd7 {[%clk 0:02:44]} 9. Nbd2 {[%clk 0:02:40]}  c5 {[%clk 0:02:42]} 10. Rc1 {[%clk 0:02:34]}  Rc8 {[%clk 0:02:41]} 11. Qe2 {[%clk 0:02:16]}  cxd4 {[%clk 0:02:22]} 12. exd4 {[%clk 0:02:07]}  Bd6 {[%clk 0:02:12]} 13. Ne5 {[%clk 0:02:01]}  h6 {[%clk 0:01:41]} 14. h3 {[%clk 0:01:57]}  Qe7 {[%clk 0:01:28]} 15. Rfe1 {[%clk 0:01:17]}  Rfd8 {[%clk 0:01:25]} 16. c5 {[%clk 0:01:06]}  Bxd3 {[%clk 0:01:00]} 17. cxd6 {[%clk 0:00:54]}  Bxe2 {[%clk 0:00:59]} 18. dxe7 {[%clk 0:00:48]}  Re8 {[%clk 0:00:41]} 19. Rxc8 {[%clk 0:00:37]}  Rxc8 {[%clk 0:00:29]} 20. Rxe2 {[%clk 0:00:37]} 1-0